fUST/lending_fUST_20240912
["ID","MTS","AMOUNT","RATE_DAILY","PERIOD"]
[337787521,1726120001129,500.0,0.00016712,2]
[337787522,1726120001161,1032.85,0.00018082,2]
[337787523,1726120001261,1451.03,0.00017534,2]
[337787524,1726120001592,500.0,0.00016986,2]
[337787525,1726120001621,1032.85,0.00018356,2]
[337787526,1726120001653,1451.03,0.00017808,2]
[337787527,1726120001709,500.0,0.0001726,2]
[337787528,1726120001746,1032.85,0.0001863,2]
[337787529,1726120001826,1451.03,0.00018082,2]
[337787530,1726120002018,500.0,0.00017534,2]
[337787531,1726120002048,1032.85,0.00018904,2]
[337787532,1726120002078,1451.03,0.00018356,2]
[337787533,1726120002330,1120.39,0.00016438,2]
[337787534,1726120002358,1451.03,0.0001863,2]
[337787535,1726120002387,500.0,0.00016438,2]
[337787536,1726120002423,500.0,0.00017808,2]
[337787537,1726120002584,1120.39,0.00016712,2]
[337787538,1726120002614,1451.03,0.00018904,2]
[337787539,1726120002644,500.0,0.00016712,2]
[337787540,1726120002681,500.0,0.00018082,2]
[337787541,1726120002849,1120.39,0.00016986,2]
[337787542,1726120002888,500.0,0.00016986,2]
[337787543,1726120002927,500.0,0.00018356,2]
[337787544,1726120003139,1120.39,0.0001726,2]
[337787545,1726120003185,500.0,0.0001726,2]
[337787546,1726120003215,511.62898469,0.0001863,2]
[337787547,1726120003464,1120.39,0.00017534,2]
[337787548,1726120003493,500.0,0.00017534,2]
[337787549,1726120003791,500.0,0.00017808,2]
[337787550,1726120003873,1120.39,0.00017808,2]
[337787551,1726120004074,500.0,0.00018082,2]
[337787552,1726120004215,1120.39,0.00018082,2]
[337787553,1726120004370,500.0,0.00018356,2]
[337787554,1726120004601,619.85,0.00016438,2]
[337787555,1726120004638,500.0,0.0001863,2]
[337787556,1726120004835,1120.39,0.00018356,2]
[337787557,1726120004865,619.85,0.00016712,2]
[337787558,1726120004965,500.0,0.00018904,2]
[337787559,1726120005121,619.85,0.00016986,2]
[337787560,1726120005301,1120.39,0.0001863,2]
[337787561,1726120005362,619.85,0.0001726,2]
[337787562,1726120005568,1120.39,0.00018904,2]
[337787563,1726120005613,619.85,0.00017534,2]
[337787564,1726120005897,619.85,0.00017808,2]
[337787565,1726120006162,619.85,0.00018082,2]
[337787566,1726120006466,619.85,0.00018356,2]
[337787567,1726120006718,619.85,0.0001863,2]
[337787568,1726120006775,451.90440514,0.00016438,2]
[337787569,1726120006976,619.85,0.00018904,2]
[337787570,1726120011037,500.0,0.00016438,2]
[337787571,1726120011286,280.92886906,0.00016712,2]
[337787572,1726120012053,1885.16,0.00016438,2]
[337787573,1726120012283,1885.16,0.00016712,2]
[337787574,1726120012631,1885.16,0.00016986,2]
[337787575,1726120012696,1062.15,0.00016438,2]
[337787576,1726120012995,1062.15,0.00016712,2]
[337787577,1726120013146,1885.16,0.0001726,2]
[337787578,1726120013261,1062.15,0.00016986,2]
[337787579,1726120013398,1885.16,0.00017534,2]
[337787580,1726120013527,1062.15,0.0001726,2]
[337787581,1726120013695,1885.16,0.00017808,2]
[337787582,1726120013828,1062.15,0.00017534,2]
[337787583,1726120013949,1885.16,0.00018082,2]
[337787584,1726120014057,1062.15,0.00017808,2]
[337787585,1726120014220,1885.16,0.00018356,2]
[337787586,1726120014311,1062.15,0.00018082,2]
[337787587,1726120014391,723.52,0.00016438,2]
[337787588,1726120014483,1885.16,0.0001863,2]
[337787589,1726120014577,1062.15,0.00018356,2]
[337787590,1726120014748,1885.16,0.00018904,2]
[337787591,1726120014829,1062.15,0.0001863,2]
[337787592,1726120015052,723.52,0.00016712,2]
[337787593,1726120015107,1062.15,0.00018904,2]
[337787594,1726120015338,723.52,0.00016986,2]
[337787595,1726120015607,723.52,0.0001726,2]
[337787596,1726120015826,500.0,0.00016438,2]
[337787597,1726120015903,723.52,0.00017534,2]
[337787598,1726120016165,500.0,0.00016712,2]
[337787599,1726120016330,723.52,0.00017808,2]
[337787600,1726120016586,723.52,0.00018082,2]
[337787601,1726120016632,500.0,0.00016986,2]
[337787602,1726120016867,723.52,0.00018356,2]
[337787603,1726120016934,734.28,0.00016438,2]
[337787604,1726120017152,723.52,0.0001863,2]
[337787605,1726120017253,500.0,0.0001726,2]
[337787606,1726120017389,511.04441264,0.00016438,2]
[337787607,1726120017436,723.52,0.00018904,2]
[337787608,1726120017522,500.0,0.00017534,2]
[337787609,1726120017797,500.0,0.00017808,2]
[337787610,1726120018097,500.0,0.00018082,2]
[337787611,1726120018382,500.0,0.00018356,2]
[337787612,1726120018659,500.0,0.0001863,2]
[337787613,1726120018932,500.0,0.00018904,2]
[337787614,1726120020570,300.0,0.00019,2]
[337787615,1726120020919,1280.46,0.00016438,2]
[337787616,1726120021197,1280.46,0.00016712,2]
[337787617,1726120021479,1280.46,0.00016986,2]
[337787618,1726120021779,1280.46,0.0001726,2]
[337787619,1726120022273,1280.46,0.00017534,2]
[337787620,1726120022384,1280.46,0.00017808,2]
[337787621,1726120022677,1280.46,0.00018082,2]
[337787622,1726120022822,500.0,0.00016438,2]
[337787623,1726120022940,1280.46,0.00018356,2]
[337787624,1726120023113,500.0,0.00016712,2]
[337787625,1726120023189,1280.46,0.0001863,2]
[337787626,1726120023374,500.0,0.00016986,2]
[337787627,1726120023453,1280.46,0.00018904,2]
[337787628,1726120023599,300.0,0.00019,2]
[337787629,1726120023649,500.0,0.0001726,2]
[337787630,1726120023715,500.0,0.00016438,2]
[337787631,1726120024069,500.0,0.00017534,2]
[337787632,1726120024103,509.28525534,0.00016712,2]
[337787633,1726120024137,802.21,0.00016438,2]
[337787634,1726120024220,500.0,0.00017808,2]
[337787635,1726120024342,802.21,0.00016712,2]
[337787636,1726120024401,862.42,0.00016438,2]
[337787637,1726120024504,500.0,0.00018082,2]
[337787638,1726120024580,802.21,0.00016986,2]
[337787639,1726120024683,862.42,0.00016712,2]
[337787640,1726120024775,500.0,0.00016438,2]
[337787641,1726120024844,500.0,0.00018356,2]
[337787642,1726120024875,802.21,0.0001726,2]
[337787643,1726120024906,829.19,0.00016438,2]
[337787644,1726120024965,862.42,0.00016986,2]
[337787645,1726120025018,500.0,0.0001863,2]
[337787646,1726120025125,802.21,0.00017534,2]
[337787647,1726120025165,829.19,0.00016712,2]
[337787648,1726120025278,500.0,0.00018904,2]
[337787649,1726120025310,1195.5,0.00016438,2]
[337787650,1726120025343,862.42,0.0001726,2]
[337787651,1726120025375,802.21,0.00017808,2]
[337787652,1726120025425,829.19,0.00016986,2]
[337787653,1726120025564,862.42,0.00017534,2]
[337787654,1726120025594,1195.5,0.00016712,2]
[337787655,1726120025690,829.19,0.0001726,2]
[337787656,1726120025745,802.21,0.00018082,2]
[337787657,1726120025852,1195.5,0.00016986,2]
[337787658,1726120025883,862.42,0.00017808,2]
[337787659,1726120025950,829.19,0.00017534,2]
[337787660,1726120025998,802.21,0.00018356,2]
[337787661,1726120026109,-303.75022887,0.00019001,2]
[337787662,1726120026141,1195.5,0.0001726,2]
[337787663,1726120026178,862.42,0.00018082,2]
[337787664,1726120026222,829.19,0.00017808,2]
[337787665,1726120026264,802.21,0.0001863,2]
[337787666,1726120026352,862.42,0.00018356,2]
[337787667,1726120026405,1195.5,0.00017534,2]
[337787668,1726120026489,829.19,0.00018082,2]
[337787669,1726120026521,802.21,0.00018904,2]
[337787670,1726120026626,862.42,0.0001863,2]
[337787671,1726120026670,1195.5,0.00017808,2]
[337787672,1726120026699,501.25665635,0.00016438,2]
[337787673,1726120026789,829.19,0.00018356,2]
[337787674,1726120026885,862.42,0.00018904,2]
[337787675,1726120026939,1195.5,0.00018082,2]
[337787676,1726120027229,1195.5,0.00018356,2]
[337787677,1726120027262,829.19,0.0001863,2]
[337787678,1726120027524,1195.5,0.0001863,2]
[337787679,1726120027555,829.19,0.00018904,2]
[337787680,1726120027794,1195.5,0.00018904,2]
[337787681,1726120028724,500.0,0.00016438,2]
[337787682,1726120030393,500.0,0.00016438,2]
[337787683,1726120030639,500.0,0.00016712,2]
[337787684,1726120030886,511.65528565,0.00016986,2]
[337787685,1726120031449,500.0,0.00016438,2]
[337787686,1726120031704,500.0,0.00016438,2]
[337787687,1726120031846,500.0,0.00016438,2]
[337787688,1726120031995,180.79231126,0.00016712,2]
[337787689,1726120032685,500.0,0.00016712,2]
[337787690,1726120032732,500.0,0.00016986,2]
[337787691,1726120032847,500.0,0.00016438,2]
[337787692,1726120032901,500.0,0.0001726,2]
[337787693,1726120033164,500.0,0.00017534,2]
[337787694,1726120033409,500.0,0.00017808,2]
[337787695,1726120033553,1973.91,0.00016438,2]
[337787696,1726120033684,500.0,0.00018082,2]
[337787697,1726120033819,1973.91,0.00016712,2]
[337787698,1726120034058,500.0,0.00018356,2]
[337787699,1726120034106,1973.91,0.00016986,2]
[337787700,1726120034355,500.0,0.0001863,2]
[337787701,1726120034388,1973.91,0.0001726,2]
[337787702,1726120034527,504.886737,0.00016438,2]
[337787703,1726120034644,500.0,0.00018904,2]
[337787704,1726120034759,1973.91,0.00017534,2]
[337787705,1726120034931,500.0,0.00016438,2]
[337787706,1726120035029,1973.91,0.00017808,2]
[337787707,1726120035197,500.0,0.00016712,2]
[337787708,1726120035282,1973.91,0.00018082,2]
[337787709,1726120035467,436.60903136,0.00016986,2]
[337787710,1726120035549,1973.91,0.00018356,2]
[337787711,1726120035810,1973.91,0.0001863,2]
[337787712,1726120036090,1973.91,0.00018904,2]
[337787713,1726120036125,-453.54014873,0.00019001,2]
[337787714,1726120036486,500.0,0.00016438,2]
[337787715,1726120037054,500.0,0.00016712,2]
[337787716,1726120037218,355.08995395,0.00016986,2]
[337787717,1726120037518,500.0,0.00016438,2]
[337787718,1726120037776,500.0,0.00016712,2]
[337787719,1726120038092,500.0,0.00016986,2]
[337787720,1726120038635,500.0,0.0001726,2]
[337787721,1726120038905,500.0,0.00017534,2]
[337787722,1726120039187,500.0,0.00017808,2]
[337787723,1726120039279,502.21503495,0.00016438,2]
[337787724,1726120039448,258.65,0.00018082,2]
[337787725,1726120040079,500.0,0.00016438,2]
[337787726,1726120040110,500.0,0.00016438,2]
[337787727,1726120040360,500.0,0.00016712,2]
[337787728,1726120040395,500.0,0.00016712,2]
[337787729,1726120040605,500.0,0.00016986,2]
[337787730,1726120040637,500.0,0.00016986,2]
[337787731,1726120040847,504.20783263,0.00016438,2]
[337787732,1726120040880,312.37623707,0.0001726,2]
[337787733,1726120040914,500.0,0.0001726,2]
[337787734,1726120041334,500.0,0.00017534,2]
[337787735,1726120041388,500.0,0.00016438,2]
[337787736,1726120041584,500.0,0.00017808,2]
[337787737,1726120041675,503.68184045,0.00016712,2]
[337787738,1726120041839,325.46653923,0.00018082,2]
[337787739,1726120042012,537.61,0.00016438,2]
[337787740,1726120042300,537.61,0.00016712,2]
[337787741,1726120042565,537.61,0.00016986,2]
[337787742,1726120042881,517.80010359,0.00016438,2]
[337787743,1726120042917,500.0,0.00016438,2]
[337787744,1726120042950,537.61,0.0001726,2]
[337787745,1726120043115,537.61,0.00017534,2]
[337787746,1726120043155,500.0,0.00016712,2]
[337787747,1726120043397,500.0,0.00016986,2]
[337787748,1726120043427,537.61,0.00017808,2]
[337787749,1726120043566,500.0,0.00016438,2]
[337787750,1726120043663,500.0,0.0001726,2]
[337787751,1726120043698,537.61,0.00018082,2]
[337787752,1726120043868,502.38868248,0.00016712,2]
[337787753,1726120043933,537.61,0.00018356,2]
[337787754,1726120043969,500.0,0.00017534,2]
[337787755,1726120044203,537.61,0.0001863,2]
[337787756,1726120044237,500.0,0.00017808,2]
[337787757,1726120044468,537.61,0.00018904,2]
[337787758,1726120044503,500.0,0.00018082,2]
[337787759,1726120044759,500.0,0.00018356,2]
[337787760,1726120045071,500.0,0.0001863,2]
[337787761,1726120045328,570.57892217,0.00018904,2]
[337787762,1726120046180,500.0,0.00016438,2]
[337787763,1726120046334,502.15972482,0.00016438,2]
[337787764,1726120046365,500.0,0.00016438,2]
[337787765,1726120046448,500.0,0.00016712,2]
[337787766,1726120046604,500.0,0.00016712,2]
[337787767,1726120046706,500.0,0.00016986,2]
[337787768,1726120046866,500.0,0.00016986,2]
[337787769,1726120046981,500.0,0.0001726,2]
[337787770,1726120047137,500.0,0.0001726,2]
[337787771,1726120047449,500.0,0.00017534,2]
[337787772,1726120047504,500.0,0.00017534,2]
[337787773,1726120047536,500.0,0.00017808,2]
[337787774,1726120047728,500.0,0.00017808,2]
[337787775,1726120047829,500.0,0.00018082,2]
[337787776,1726120047997,500.0,0.00018082,2]
[337787777,1726120048074,500.0,0.00018356,2]
[337787778,1726120048268,500.0,0.00018356,2]
[337787779,1726120048323,500.0,0.0001863,2]
[337787780,1726120048534,500.0,0.0001863,2]
[337787781,1726120048578,500.0,0.00018904,2]
[337787782,1726120048793,500.0,0.00018904,2]
[337787783,1726120049560,202.37841873,0.00016438,2]
[337787784,1726120049753,500.0,0.00016438,2]
[337787785,1726120050023,500.0,0.00016712,2]
[337787786,1726120050101,-507.69807321,0.00019001,2]
[337787787,1726120050271,511.44589907,0.00016986,2]
[337787788,1726120050957,540.55,0.00016438,2]
[337787789,1726120051248,540.55,0.00016712,2]
[337787790,1726120051512,540.55,0.00016986,2]
[337787791,1726120051800,540.55,0.0001726,2]
[337787792,1726120052072,540.55,0.00017534,2]
[337787793,1726120052136,-207.50724296,0.00019001,2]
[337787794,1726120052323,540.55,0.00017808,2]
[337787795,1726120052613,540.55,0.00018082,2]
[337787796,1726120052763,21987.48,0.00016438,2]
[337787797,1726120052862,500.0,0.00016438,2]
[337787798,1726120053161,21987.48,0.00016712,2]
[337787799,1726120053191,540.55,0.00018356,2]
[337787800,1726120053237,287.11439826,0.00016712,2]
[337787801,1726120053340,21987.48,0.00016986,2]
[337787802,1726120053370,168.25260869,0.0001863,2]
[337787803,1726120053398,372.29739131,0.0001863,2]
[337787804,1726120053640,2410.70260869,0.0001726,2]
[337787805,1726120054129,-962.18117594,0.0001726,2]
[337787806,1726120071873,801.48,0.00010959,2]
[337787807,1726120092898,400.74,0.00010959,2]
[337787808,1726120110764,14768.779534,0.00018991,3]
[337787809,1726120113711,160.3,0.00010959,2]
[337787810,1726120114326,2097.51667239,0.00018894,3]
[337787811,1726120124259,801.5,0.00010959,2]
[337787812,1726120155124,-189.20196424,0.00016338,2]
[337787813,1726120155145,-300.0,0.00016437,2]
[337787814,1726120155165,-1141.94,0.00016438,2]
[337787815,1726120155187,-1329.92,0.00016438,2]
[337787816,1726120155213,-473.00106924,0.00016438,2]
[337787817,1726120155236,-1485.95,0.00016438,2]
[337787818,1726120155262,-500.0,0.00016438,2]
[337787819,1726120155288,-500.0,0.00016438,2]
[337787820,1726120155310,-500.0,0.00016438,2]
[337787821,1726120155334,-1012.07,0.00016438,2]
[337787822,1726120155359,-500.0,0.00016438,2]
[337787823,1726120155382,-1938.17,0.00016438,2]
[337787824,1726120155404,-500.0,0.00016438,2]
[337787825,1726120155427,-503.34619687,0.00016438,2]
[337787826,1726120155451,-500.0,0.00016438,2]
[337787827,1726120155474,-500.0,0.00016438,2]
[337787828,1726120155496,-1238.32,0.00016438,2]
[337787829,1726120155518,-490.37470131,0.00016438,2]
[337787830,1726120155541,-1489.37,0.00016438,2]
[337787831,1726120155561,-500.0,0.00016438,2]
[337787832,1726120155583,-1018.33,0.00016438,2]
[337787833,1726120155799,-651.53,0.00016438,2]
[337787834,1726120155821,-834.14372834,0.00016438,2]
[337787835,1726120157127,-576.14627166,0.00016438,2]
[337787836,1726120157148,-504.52373986,0.00016438,2]
[337787837,1726120157168,-509.28939284,0.00016438,2]
[337787838,1726120157189,-502.78430225,0.00016438,2]
[337787839,1726120157215,-500.0,0.00016438,2]
[337787840,1726120157238,-500.0,0.00016438,2]
[337787841,1726120157257,-500.0,0.00016438,2]
[337787842,1726120157280,-718.69,0.00016438,2]
[337787843,1726120157304,-500.0,0.00016438,2]
[337787844,1726120157325,-500.0,0.00016438,2]
[337787845,1726120157347,-544.16,0.00016438,2]
[337787846,1726120157367,-184.57723403,0.00016438,2]
[337787847,1726120157389,-537.56585578,0.00016438,2]
[337787848,1726120157410,-500.0,0.00016438,2]
[337787849,1726120157432,-500.0,0.00016438,2]
[337787850,1726120157452,-555.97,0.00016438,2]
[337787851,1726120157475,-500.0,0.00016438,2]
[337787852,1726120157496,-501.59701843,0.00016438,2]
[337787853,1726120157517,-500.0,0.00016438,2]
[337787854,1726120157550,-1466.67,0.00016438,2]
[337787855,1726120157577,-263.73738535,0.00016438,2]
[337787856,1726120163223,-236.26261465,0.00016438,2]
[337787857,1726120163247,-500.0,0.00016438,2]
[337787858,1726120163272,-500.0,0.00016438,2]
[337787859,1726120163299,-500.0,0.00016438,2]
[337787860,1726120163322,-500.0,0.00016438,2]
[337787861,1726120163344,-832.83,0.00016438,2]
[337787862,1726120163367,-500.0,0.00016438,2]
[337787863,1726120163388,-502.80020864,0.00016438,2]
[337787864,1726120163410,-844.45,0.00016438,2]
[337787865,1726120163432,-219.65621999,0.00016438,2]
[337787866,1726120163454,-631.5,0.00016438,2]
[337787867,1726120163476,-500.0,0.00016438,2]
[337787868,1726120163499,-892.86,0.00016438,2]
[337787869,1726120163520,-500.0,0.00016438,2]
[337787870,1726120163541,-500.0,0.00016438,2]
[337787871,1726120163564,-500.0,0.00016438,2]
[337787872,1726120163586,-500.0,0.00016438,2]
[337787873,1726120163608,-500.0,0.00016438,2]
[337787874,1726120163630,-1458.03,0.00016438,2]
[337787875,1726120163653,-2154.29,0.00016438,2]
[337787876,1726120163675,-500.0,0.00016438,2]
[337787877,1726120163702,-1013.82,0.00016438,2]
[337787878,1726120163727,-344.17633184,0.00016438,2]
[337787879,1726120163754,-393.57278461,0.00016438,2]
[337787880,1726120163777,-500.0,0.00016438,2]
[337787881,1726120163799,-500.0,0.00016438,2]
[337787882,1726120163826,-500.0,0.00016438,2]
[337787883,1726120163849,-500.0,0.00016438,2]
[337787884,1726120163872,-500.0,0.00016438,2]
[337787885,1726120163896,-1649.99,0.00016438,2]
[337787886,1726120163919,-1853.89,0.00016438,2]
[337787887,1726120163943,-500.0,0.00016438,2]
[337787888,1726120163966,-500.0,0.00016438,2]
[337787889,1726120163988,-500.0,0.00016438,2]
[337787890,1726120164010,-508.75518023,0.00016438,2]
[337787891,1726120164032,-500.0,0.00016438,2]
[337787892,1726120164053,-239.98904952,0.00016438,2]
[337787893,1726120164075,-500.0,0.00016438,2]
[337787894,1726120164096,-500.0,0.00016438,2]
[337787895,1726120164117,-500.0,0.00016438,2]
[337787896,1726120164138,-500.0,0.00016438,2]
[337787897,1726120164160,-565.73,0.00016438,2]
[337787898,1726120164181,-500.0,0.00016438,2]
[337787899,1726120164205,-500.0,0.00016438,2]
[337787900,1726120164230,-3823.52,0.00016438,2]
[337787901,1726120164259,-500.0,0.00016438,2]
[337787902,1726120164283,-500.0,0.00016438,2]
[337787903,1726120164308,-510.32209435,0.00016438,2]
[337787904,1726120164333,-500.0,0.00016438,2]
[337787905,1726120164364,-505.40691424,0.00016438,2]
[337787906,1726120164386,-500.0,0.00016438,2]
[337787907,1726120164406,-500.0,0.00016438,2]
[337787908,1726120164427,-262.73228511,0.00016438,2]
[337787909,1726120164449,-22020.08,0.00016438,2]
[337787910,1726120164470,-500.0,0.00016438,2]
[337787911,1726120164493,-5622.05,0.00016438,2]
[337787912,1726120164515,-500.0,0.00016438,2]
[337787913,1726120164540,-500.0,0.00016438,2]
[337787914,1726120164562,-500.0,0.00016438,2]
[337787915,1726120164584,-500.0,0.00016438,2]
[337787916,1726120164606,-500.0,0.00016438,2]
[337787917,1726120164627,-500.0,0.00016438,2]
[337787918,1726120164649,-502.70032257,0.00016438,2]
[337787919,1726120164670,-1353.58,0.00016438,2]
[337787920,1726120164692,-500.0,0.00016438,2]
[337787921,1726120164713,-500.0,0.00016438,2]
[337787922,1726120164734,-500.0,0.00016438,2]
[337787923,1726120164755,-441.3783437,0.00016438,2]
[337787924,1726120164777,-500.0,0.00016438,2]
[337787925,1726120164798,-500.0,0.00016438,2]
[337787926,1726120164821,-631.56,0.00016438,2]
[337787927,1726120164848,-500.0,0.00016438,2]
[337787928,1726120164869,-1320.81,0.00016438,2]
[337787929,1726120164889,-501.04321213,0.00016438,2]
[337787930,1726120164910,-386.83438056,0.00016438,2]
[337787931,1726120164931,-503.34334249,0.00016438,2]
[337787932,1726120164952,-426.02987266,0.00016438,2]
[337787933,1726120164973,-500.0,0.00016438,2]
[337787934,1726120164996,-500.0,0.00016438,2]
[337787935,1726120165027,-500.0,0.00016438,2]
[337787936,1726120165054,-500.0,0.00016438,2]
[337787937,1726120165076,-500.0,0.00016438,2]
[337787938,1726120165099,-500.0,0.00016438,2]
[337787939,1726120165120,-500.0,0.00016438,2]
[337787940,1726120165141,-500.0,0.00016711,2]
[337787941,1726120165163,-500.0,0.00016711,2]
[337787942,1726120165185,-538.1020259,0.00016711,2]
[337787943,1726120165208,-500.0,0.00016711,2]
[337787944,1726120165234,-500.0,0.00016711,2]
[337787945,1726120165257,-500.0,0.00016711,2]
[337787946,1726120165282,-500.0,0.00016711,2]
[337787947,1726120165306,-500.0,0.00016711,2]
[337787948,1726120165329,-500.0,0.00016711,2]
[337787949,1726120165597,-500.0,0.00016711,2]
[337787950,1726120165625,-355.67847904,0.00016711,2]
[337787951,1726120165651,-1141.94,0.00016712,2]
[337787952,1726120165675,-1329.92,0.00016712,2]
[337787953,1726120165699,-1485.95,0.00016712,2]
[337787954,1726120165722,-647.37512149,0.00016712,2]
[337787955,1726120165750,-500.0,0.00016712,2]
[337787956,1726120165771,-500.0,0.00016712,2]
[337787957,1726120165794,-1012.07,0.00016712,2]
[337787958,1726120165816,-500.0,0.00016712,2]
[337787959,1726120165838,-1938.17,0.00016712,2]
[337787960,1726120165858,-500.0,0.00016712,2]
[337787961,1726120165879,-500.0,0.00016712,2]
[337787962,1726120165901,-1238.32,0.00016712,2]
[337787963,1726120165923,-1489.37,0.00016712,2]
[337787964,1726120165946,-1018.33,0.00016712,2]
[337787965,1726120165968,-1410.29,0.00016712,2]
[337787966,1726120165990,-651.53,0.00016712,2]
[337787967,1726120166013,-500.0,0.00016712,2]
[337787968,1726120166033,-718.69,0.00016712,2]
[337787969,1726120166054,-500.0,0.00016712,2]
[337787970,1726120166076,-544.16,0.00016712,2]
[337787971,1726120166097,-500.0,0.00016712,2]
[337787972,1726120166121,-555.97,0.00016712,2]
[337787973,1726120166143,-500.90587768,0.00016712,2]
[337787974,1726120166165,-1466.67,0.00016712,2]
[337787975,1726120166187,-500.0,0.00016712,2]
[337787976,1726120166211,-365.59843308,0.00016712,2]
[337787977,1726120166236,-500.0,0.00016712,2]
[337787978,1726120166258,-832.83,0.00016712,2]
[337787979,1726120166280,-500.0,0.00016712,2]
[337787980,1726120166301,-844.45,0.00016712,2]
[337787981,1726120166333,-631.5,0.00016712,2]
[337787982,1726120166357,-500.0,0.00016712,2]
[337787983,1726120166381,-892.86,0.00016712,2]
[337787984,1726120166405,-500.0,0.00016712,2]
[337787985,1726120166428,-500.0,0.00016712,2]
[337787986,1726120166450,-500.0,0.00016712,2]
[337787987,1726120166474,-500.0,0.00016712,2]
[337787988,1726120166495,-1458.03,0.00016712,2]
[337787989,1726120166519,-2154.29,0.00016712,2]
[337787990,1726120166541,-500.0,0.00016712,2]
[337787991,1726120166565,-1013.82,0.00016712,2]
[337787992,1726120166591,-500.0,0.00016712,2]
[337787993,1726120166615,-500.0,0.00016712,2]
[337787994,1726120166639,-500.0,0.00016712,2]
[337787995,1726120166663,-1649.99,0.00016712,2]
[337787996,1726120166685,-1853.89,0.00016712,2]
[337787997,1726120166708,-505.91711921,0.00016712,2]
[337787998,1726120166733,-500.0,0.00016712,2]
[337787999,1726120166757,-500.0,0.00016712,2]
[337788000,1726120166781,-500.0,0.00016712,2]
[337788001,1726120166805,-500.0,0.00016712,2]
[337788002,1726120166829,-543.46905988,0.00016712,2]
[337788003,1726120166852,-500.0,0.00016712,2]
[337788004,1726120166874,-565.73,0.00016712,2]
[337788005,1726120166896,-500.0,0.00016712,2]
[337788006,1726120166921,-3823.52,0.00016712,2]
[337788007,1726120166942,-500.0,0.00016712,2]
[337788008,1726120166965,-500.0,0.00016712,2]
[337788009,1726120166988,-500.0,0.00016712,2]
[337788010,1726120167011,-22020.08,0.00016712,2]
[337788011,1726120167035,-5622.05,0.00016712,2]
[337788012,1726120167057,-455.40578428,0.00016712,2]
[337788013,1726120167079,-511.93914735,0.00016712,2]
[337788014,1726120167103,-500.0,0.00016712,2]
[337788015,1726120167124,-500.0,0.00016712,2]
[337788016,1726120167146,-1353.58,0.00016712,2]
[337788017,1726120167168,-500.0,0.00016712,2]
[337788018,1726120167193,-500.0,0.00016712,2]
[337788019,1726120167216,-500.0,0.00016712,2]
[337788020,1726120167240,-500.0,0.00016712,2]